[Event "Titled Tuesday Blitz August 22 Early 2023"]
[White "Kuzhilniy, Oleksandr"]
[Black "Sadhwani, Raunak"]
[WhiteFideId "34110500"]
[BlackFideId "35093487"]
[WhiteElo "2610"]
[BlackElo "3022"]
[Result "0-1"]
[Round "2"]
[TimeControl "180+1"]
[Date "2023.08.22"]
[WhiteClock "0:00:03"]
[BlackClock "0:00:16"]
[Board "12"]

1. b3 {[%clk 0:03:00]}  g6 {[%clk 0:03:00]} 2. Bb2 {[%clk 0:03:01]}  Nf6 {[%clk 0:03:01]} 3. Nf3 {[%clk 0:03:00]}  Bg7 {[%clk 0:03:01]} 4. g3 {[%clk 0:03:00]}  O-O {[%clk 0:03:02]} 5. Bg2 {[%clk 0:03:01]}  d6 {[%clk 0:03:03]} 6. d4 {[%clk 0:03:00]}  b5 {[%clk 0:03:02]} 7. O-O {[%clk 0:02:58]}  Bb7 {[%clk 0:03:02]} 8. Nbd2 {[%clk 0:02:56]}  Nbd7 {[%clk 0:03:00]} 9. c4 {[%clk 0:02:53]}  bxc4 {[%clk 0:03:01]} 10. Nxc4 {[%clk 0:02:54]}  a5 {[%clk 0:03:00]} 11. Qe1 {[%clk 0:02:50]}  c5 {[%clk 0:02:55]} 12. dxc5 {[%clk 0:02:49]}  Nxc5 {[%clk 0:02:56]} 13. Rc1 {[%clk 0:02:40]}  Bd5 {[%clk 0:02:24]} 14. Bc3 {[%clk 0:02:30]}  Bxc4 {[%clk 0:02:24]} 15. bxc4 {[%clk 0:02:30]}  e5 {[%clk 0:02:06]} 16. Rb1 {[%clk 0:02:24]}  Qc7 {[%clk 0:01:57]} 17. Nd2 {[%clk 0:02:18]}  Ra6 {[%clk 0:01:49]} 18. Rb5 {[%clk 0:02:12]}  a4 {[%clk 0:01:46]} 19. Qb1 {[%clk 0:02:03]}  Nfd7 {[%clk 0:01:45]} 20. Rd1 {[%clk 0:01:59]}  h6 {[%clk 0:01:31]} 21. Nf1 {[%clk 0:01:51]}  Nf6 {[%clk 0:01:18]} 22. Ne3 {[%clk 0:01:47]}  Kh7 {[%clk 0:01:00]} 23. Bb4 {[%clk 0:01:37]}  e4 {[%clk 0:00:48]} 24. Bxc5 {[%clk 0:01:33]}  dxc5 {[%clk 0:00:49]} 25. Bxe4 {[%clk 0:01:33]}  Re6 {[%clk 0:00:49]} 26. Nd5 {[%clk 0:01:15]}  Nxd5 {[%clk 0:00:43]} 27. Rxd5 {[%clk 0:01:16]}  Qe7 {[%clk 0:00:29]} 28. Bd3 {[%clk 0:01:14]}  Bd4 {[%clk 0:00:21]} 29. Rb7 {[%clk 0:01:10]}  Qf6 {[%clk 0:00:17]} 30. e3 {[%clk 0:01:00]}  Bc3 {[%clk 0:00:18]} 31. h4 {[%clk 0:00:51]}  Kg7 {[%clk 0:00:18]} 32. h5 {[%clk 0:00:35]}  g5 {[%clk 0:00:19]} 33. Rf5 {[%clk 0:00:34]}  Qd8 {[%clk 0:00:19]} 34. Be4 {[%clk 0:00:25]}  Re7 {[%clk 0:00:19]} 35. Bd5 {[%clk 0:00:20]}  Rxb7 {[%clk 0:00:19]} 36. Qxb7 {[%clk 0:00:20]}  Bf6 {[%clk 0:00:20]} 37. Qc6 {[%clk 0:00:20]}  a3 {[%clk 0:00:20]} 38. Qxc5 {[%clk 0:00:19]}  Qe7 {[%clk 0:00:20]} 39. Qxe7 {[%clk 0:00:17]}  Bxe7 {[%clk 0:00:21]} 40. e4 {[%clk 0:00:14]}  f6 {[%clk 0:00:20]} 41. Rf3 {[%clk 0:00:14]}  Rb8 {[%clk 0:00:20]} 42. c5 {[%clk 0:00:13]}  Bxc5 {[%clk 0:00:18]} 43. Rc3 {[%clk 0:00:13]}  Bd6 {[%clk 0:00:18]} 44. Bb3 {[%clk 0:00:10]}  Be5 {[%clk 0:00:18]} 45. Rd3 {[%clk 0:00:10]}  Rc8 {[%clk 0:00:17]} 46. Rd7+ {[%clk 0:00:08]}  Kh8 {[%clk 0:00:16]} 47. Kg2 {[%clk 0:00:09]}  Rc3 {[%clk 0:00:16]} 48. Kh3 {[%clk 0:00:05]}  Rxb3 {[%clk 0:00:16]} 49. axb3 {[%clk 0:00:04]}  a2 {[%clk 0:00:17]} 50. Ra7 {[%clk 0:00:04]}  a1=Q {[%clk 0:00:17]} 51. Rxa1 {[%clk 0:00:04]}  Bxa1 {[%clk 0:00:18]} 52. Kg4 {[%clk 0:00:05]}  Kg7 {[%clk 0:00:18]} 53. Kf5 {[%clk 0:00:06]}  Kf7 {[%clk 0:00:17]} 54. f4 {[%clk 0:00:06]}  Bd4 {[%clk 0:00:14]} 55. b4 {[%clk 0:00:04]}  Bf2 {[%clk 0:00:14]} 56. fxg5 {[%clk 0:00:02]}  hxg5 {[%clk 0:00:15]} 57. g4 {[%clk 0:00:02]}  Bg3 {[%clk 0:00:15]} 58. b5 {[%clk 0:00:03]}  Bc7 {[%clk 0:00:15]} 59. b6 {[%clk 0:00:03]}  Bxb6 {[%clk 0:00:14]} 60. e5 {[%clk 0:00:04]}  Bd8 {[%clk 0:00:14]} 61. exf6 {[%clk 0:00:02]}  Bxf6 {[%clk 0:00:15]} 62. h6 {[%clk 0:00:02]}  Bd8 {[%clk 0:00:15]} 63. Ke5 {[%clk 0:00:03]}  Kg6 {[%clk 0:00:15]} 64. Ke6 {[%clk 0:00:03]}  Kxh6 {[%clk 0:00:14]} 65. Kf5 {[%clk 0:00:04]}  Ba5 {[%clk 0:00:14]} 66. Ke4 {[%clk 0:00:04]}  Bd2 {[%clk 0:00:15]} 67. Kf5 {[%clk 0:00:03]}  Bf4 {[%clk 0:00:16]} 0-1


[Site "https://www.chess.com"]

[Event "Titled Tuesday Blitz August 22 Early 2023"]
[White "Sadykov, Ramil"]
[Black "Andreikin, Dmitry"]
[WhiteFideId "24113590"]
[BlackFideId "4158814"]
[WhiteElo "2609"]
[BlackElo "3004"]
[Result "1/2-1/2"]
[Round "2"]
[TimeControl "180+1"]
[Date "2023.08.22"]
[WhiteClock "0:00:18"]
[BlackClock "0:00:35"]
[Board "14"]

1. e4 {[%clk 0:03:00]}  c5 {[%clk 0:02:58]} 2. Nf3 {[%clk 0:03:01]}  e6 {[%clk 0:02:58]} 3. c4 {[%clk 0:03:01]}  Nc6 {[%clk 0:02:53]} 4. Nc3 {[%clk 0:03:01]}  e5 {[%clk 0:02:53]} 5. d3 {[%clk 0:02:58]}  d6 {[%clk 0:02:53]} 6. Be2 {[%clk 0:02:58]}  g6 {[%clk 0:02:46]} 7. O-O {[%clk 0:02:57]}  Bg7 {[%clk 0:02:46]} 8. Ne1 {[%clk 0:02:38]}  Nge7 {[%clk 0:02:43]} 9. Bg5 {[%clk 0:02:20]}  O-O {[%clk 0:02:38]} 10. Nc2 {[%clk 0:02:17]}  h6 {[%clk 0:02:33]} 11. Bxe7 {[%clk 0:02:17]}  Qxe7 {[%clk 0:02:32]} 12. Nd5 {[%clk 0:02:12]}  Qg5 {[%clk 0:02:32]} 13. Qc1 {[%clk 0:01:59]}  Qh4 {[%clk 0:02:21]} 14. Qe3 {[%clk 0:01:46]}  f5 {[%clk 0:02:11]} 15. Qg3 {[%clk 0:01:42]}  Qxg3 {[%clk 0:02:03]} 16. hxg3 {[%clk 0:01:43]}  Bd7 {[%clk 0:01:56]} 17. Rab1 {[%clk 0:01:34]}  b6 {[%clk 0:01:53]} 18. b4 {[%clk 0:01:28]}  h5 {[%clk 0:01:53]} 19. exf5 {[%clk 0:01:22]}  Bxf5 {[%clk 0:01:49]} 20. Nde3 {[%clk 0:01:15]}  Be6 {[%clk 0:01:35]} 21. Bf3 {[%clk 0:01:13]}  Rac8 {[%clk 0:01:34]} 22. Bd5 {[%clk 0:01:05]}  Nd8 {[%clk 0:01:32]} 23. Bxe6+ {[%clk 0:00:58]}  Nxe6 {[%clk 0:01:32]} 24. Nd5 {[%clk 0:00:59]}  Kf7 {[%clk 0:01:25]} 25. bxc5 {[%clk 0:00:52]}  Nxc5 {[%clk 0:01:25]} 26. Rfd1 {[%clk 0:00:46]}  e4 {[%clk 0:01:24]} 27. dxe4 {[%clk 0:00:34]}  Nxe4 {[%clk 0:01:24]} 28. Nce3 {[%clk 0:00:32]}  Rfe8 {[%clk 0:01:23]} 29. Rd3 {[%clk 0:00:28]}  Bh6 {[%clk 0:01:11]} 30. Ra3 {[%clk 0:00:26]}  Bxe3 {[%clk 0:01:04]} 31. Rxa7+ {[%clk 0:00:26]}  Kf8 {[%clk 0:01:04]} 32. Nxe3 {[%clk 0:00:25]}  Nxg3 {[%clk 0:01:00]} 33. Rxb6 {[%clk 0:00:23]}  Ne4 {[%clk 0:00:46]} 34. Rbb7 {[%clk 0:00:22]}  Ng5 {[%clk 0:00:46]} 35. f4 {[%clk 0:00:18]}  Rxe3 {[%clk 0:00:40]} 36. fxg5 {[%clk 0:00:18]}  Rxc4 {[%clk 0:00:40]} 37. Rf7+ {[%clk 0:00:16]}  Kg8 {[%clk 0:00:34]} 38. Rg7+ {[%clk 0:00:16]}  Kh8 {[%clk 0:00:35]} 39. Rh7+ {[%clk 0:00:17]}  Kg8 {[%clk 0:00:35]} 40. Rhg7+ {[%clk 0:00:17]}  Kh8 {[%clk 0:00:35]} 41. Rh7+ {[%clk 0:00:17]}  Kg8 {[%clk 0:00:35]} 42. Rhg7+ {[%clk 0:00:18]} 1/2-1/2


[Site "https://www.chess.com"]

[Event "Titled Tuesday Blitz August 22 Early 2023"]
[White "Tari, Aryan"]
[Black "Borgaonkar Akshay"]
[WhiteFideId "1510045"]
[BlackFideId "25639110"]
[WhiteElo "2955"]
[BlackElo "2596"]
[Result "1-0"]
[Round "2"]
[TimeControl "180+1"]
[Date "2023.08.22"]
[WhiteClock "0:00:12"]
[BlackClock "0:00:01"]
[Board "23"]

1. e4 {[%clk 0:03:00]}  c5 {[%clk 0:02:59]} 2. Nf3 {[%clk 0:02:58]}  a6 {[%clk 0:02:59]} 3. b4 {[%clk 0:02:52]}  cxb4 {[%clk 0:02:58]} 4. d4 {[%clk 0:02:52]}  e6 {[%clk 0:02:57]} 5. a3 {[%clk 0:02:52]}  bxa3 {[%clk 0:02:57]} 6. Nxa3 {[%clk 0:02:52]}  b5 {[%clk 0:02:57]} 7. Bd3 {[%clk 0:02:45]}  Bb7 {[%clk 0:02:50]} 8. O-O {[%clk 0:02:45]}  Nf6 {[%clk 0:02:50]} 9. Qe2 {[%clk 0:02:42]}  Bb4 {[%clk 0:02:41]} 10. Rb1 {[%clk 0:02:34]}  Be7 {[%clk 0:02:39]} 11. c4 {[%clk 0:02:30]}  b4 {[%clk 0:02:35]} 12. c5 {[%clk 0:02:30]}  bxa3 {[%clk 0:02:05]} 13. Rxb7 {[%clk 0:02:29]}  Qa5 {[%clk 0:01:58]} 14. Bd2 {[%clk 0:02:23]}  Qd8 {[%clk 0:01:47]} 15. Ra1 {[%clk 0:02:14]}  Nc6 {[%clk 0:01:42]} 16. Rxa3 {[%clk 0:02:11]}  O-O {[%clk 0:01:38]} 17. h3 {[%clk 0:02:05]}  Rb8 {[%clk 0:01:32]} 18. Rxb8 {[%clk 0:01:51]}  Qxb8 {[%clk 0:01:33]} 19. Rxa6 {[%clk 0:01:50]}  Qb2 {[%clk 0:01:29]} 20. Rb6 {[%clk 0:01:40]}  Qa1+ {[%clk 0:01:23]} 21. Rb1 {[%clk 0:01:40]}  Qa4 {[%clk 0:01:22]} 22. Be3 {[%clk 0:01:18]}  Ra8 {[%clk 0:01:11]} 23. Bb5 {[%clk 0:01:17]}  Qa3 {[%clk 0:01:05]} 24. Bxc6 {[%clk 0:01:09]}  dxc6 {[%clk 0:01:06]} 25. Ne5 {[%clk 0:01:10]}  Nxe4 {[%clk 0:01:06]} 26. Qf3 {[%clk 0:01:09]}  f5 {[%clk 0:01:01]} 27. Nxc6 {[%clk 0:00:55]}  Bf8 {[%clk 0:01:00]} 28. Ne5 {[%clk 0:00:42]}  Qa2 {[%clk 0:00:58]} 29. Rb7 {[%clk 0:00:37]}  Qd5 {[%clk 0:00:56]} 30. Rd7 {[%clk 0:00:35]}  Qb3 {[%clk 0:00:28]} 31. Qh5 {[%clk 0:00:33]}  f4 {[%clk 0:00:11]} 32. Qf7+ {[%clk 0:00:29]}  Kh8 {[%clk 0:00:11]} 33. Qxf4 {[%clk 0:00:27]}  Nc3 {[%clk 0:00:10]} 34. Rf7 {[%clk 0:00:12]}  Qd1+ {[%clk 0:00:05]} 35. Kh2 {[%clk 0:00:12]}  Kg8 {[%clk 0:00:05]} 36. Nd7 {[%clk 0:00:13]}  Be7 {[%clk 0:00:01]} 37. Rxe7 {[%clk 0:00:12]}  Rf8 {[%clk 0:00:01]} 38. Qxf8# {[%clk 0:00:12]} 1-0


[Site "https://www.chess.com"]

[Event "Titled Tuesday Blitz August 22 Early 2023"]
[White "Ahmad, Khagan"]
[Black "Terry, Renato"]
[WhiteFideId "13431552"]
[BlackFideId "3803457"]
[WhiteElo "2596"]
[BlackElo "2953"]
[Result "0-1"]
[Round "2"]
[TimeControl "180+1"]
[Date "2023.08.22"]
[WhiteClock "0:00:02"]
[BlackClock "0:00:09"]
[Board "24"]

1. Nf3 {[%clk 0:02:56]}  d5 {[%clk 0:02:58]} 2. d4 {[%clk 0:02:52]}  Nf6 {[%clk 0:02:58]} 3. g3 {[%clk 0:02:52]}  c6 {[%clk 0:02:58]} 4. Bg2 {[%clk 0:02:52]}  Bf5 {[%clk 0:02:59]} 5. O-O {[%clk 0:02:52]}  e6 {[%clk 0:02:57]} 6. c4 {[%clk 0:02:52]}  h6 {[%clk 0:02:54]} 7. Nc3 {[%clk 0:02:52]}  Nbd7 {[%clk 0:02:54]} 8. Nd2 {[%clk 0:02:49]}  Be7 {[%clk 0:02:48]} 9. e4 {[%clk 0:02:49]}  dxe4 {[%clk 0:02:48]} 10. Ndxe4 {[%clk 0:02:50]}  O-O {[%clk 0:02:47]} 11. Nxf6+ {[%clk 0:02:47]}  Nxf6 {[%clk 0:02:43]} 12. Qb3 {[%clk 0:02:42]}  Qb6 {[%clk 0:02:43]} 13. Qxb6 {[%clk 0:02:39]}  axb6 {[%clk 0:02:43]} 14. Rd1 {[%clk 0:02:39]}  Rfd8 {[%clk 0:02:36]} 15. Be3 {[%clk 0:02:33]}  Bb4 {[%clk 0:02:23]} 16. h3 {[%clk 0:02:30]}  Rd7 {[%clk 0:02:17]} 17. g4 {[%clk 0:02:29]}  Bg6 {[%clk 0:02:17]} 18. Rdc1 {[%clk 0:02:16]}  Bd3 {[%clk 0:01:54]} 19. a3 {[%clk 0:02:03]}  Bf8 {[%clk 0:01:51]} 20. Bf1 {[%clk 0:01:52]}  Bxf1 {[%clk 0:01:47]} 21. Kxf1 {[%clk 0:01:53]}  Ra6 {[%clk 0:01:36]} 22. f3 {[%clk 0:01:42]}  Ne8 {[%clk 0:01:36]} 23. h4 {[%clk 0:01:24]}  g6 {[%clk 0:01:35]} 24. Kf2 {[%clk 0:01:21]}  Bg7 {[%clk 0:01:35]} 25. Ne2 {[%clk 0:01:17]}  Nd6 {[%clk 0:01:32]} 26. b3 {[%clk 0:01:10]}  b5 {[%clk 0:01:30]} 27. a4 {[%clk 0:01:05]}  bxc4 {[%clk 0:01:28]} 28. bxc4 {[%clk 0:01:05]}  Rd8 {[%clk 0:01:26]} 29. c5 {[%clk 0:00:59]}  Ne8 {[%clk 0:01:24]} 30. Rab1 {[%clk 0:00:58]}  Rd7 {[%clk 0:01:23]} 31. Rc4 {[%clk 0:00:57]}  Nf6 {[%clk 0:01:21]} 32. Nc3 {[%clk 0:00:52]}  Kf8 {[%clk 0:01:15]} 33. Rcb4 {[%clk 0:00:50]}  Ra7 {[%clk 0:01:15]} 34. Bf4 {[%clk 0:00:46]}  Ke8 {[%clk 0:00:48]} 35. Bb8 {[%clk 0:00:41]}  Ra8 {[%clk 0:00:48]} 36. Be5 {[%clk 0:00:41]}  Ra7 {[%clk 0:00:45]} 37. g5 {[%clk 0:00:35]}  hxg5 {[%clk 0:00:44]} 38. hxg5 {[%clk 0:00:35]}  Nh5 {[%clk 0:00:45]} 39. Bxg7 {[%clk 0:00:36]}  Nxg7 {[%clk 0:00:46]} 40. Ne4 {[%clk 0:00:36]}  Ke7 {[%clk 0:00:43]} 41. Nd6 {[%clk 0:00:32]}  Rxd6 {[%clk 0:00:43]} 42. cxd6+ {[%clk 0:00:32]}  Kxd6 {[%clk 0:00:44]} 43. Rxb7 {[%clk 0:00:32]}  Rxa4 {[%clk 0:00:44]} 44. Rxf7 {[%clk 0:00:32]}  Nf5 {[%clk 0:00:45]} 45. Rf6 {[%clk 0:00:28]}  Ra2+ {[%clk 0:00:45]} 46. Kg1 {[%clk 0:00:26]}  Nxd4 {[%clk 0:00:42]} 47. Re1 {[%clk 0:00:24]}  c5 {[%clk 0:00:39]} 48. Re3 {[%clk 0:00:22]}  c4 {[%clk 0:00:33]} 49. Rf8 {[%clk 0:00:17]}  e5 {[%clk 0:00:31]} 50. Rd8+ {[%clk 0:00:14]}  Kc6 {[%clk 0:00:31]} 51. Rc8+ {[%clk 0:00:12]}  Kd5 {[%clk 0:00:31]} 52. Rd8+ {[%clk 0:00:12]}  Kc6 {[%clk 0:00:31]} 53. Rc8+ {[%clk 0:00:12]}  Kb5 {[%clk 0:00:30]} 54. Rb8+ {[%clk 0:00:12]}  Kc5 {[%clk 0:00:26]} 55. Rxe5+ {[%clk 0:00:11]}  Kd6 {[%clk 0:00:27]} 56. Re3 {[%clk 0:00:11]}  Rd2 {[%clk 0:00:24]} 57. Rd8+ {[%clk 0:00:11]}  Kc7 {[%clk 0:00:22]} 58. Rd5 {[%clk 0:00:11]}  Nxf3+ {[%clk 0:00:21]} 59. Rxf3 {[%clk 0:00:10]}  Rxd5 {[%clk 0:00:22]} 60. Rc3 {[%clk 0:00:08]}  Rxg5+ {[%clk 0:00:20]} 61. Kf2 {[%clk 0:00:08]}  Rc5 {[%clk 0:00:21]} 62. Ke3 {[%clk 0:00:09]}  Kc6 {[%clk 0:00:18]} 63. Kd4 {[%clk 0:00:10]}  Kd6 {[%clk 0:00:14]} 64. Rf3 {[%clk 0:00:06]}  c3 {[%clk 0:00:12]} 65. Rf6+ {[%clk 0:00:03]}  Ke7 {[%clk 0:00:12]} 66. Rf1 {[%clk 0:00:03]}  Rc8 {[%clk 0:00:11]} 67. Re1+ {[%clk 0:00:02]}  Kf7 {[%clk 0:00:11]} 68. Rf1+ {[%clk 0:00:02]}  Kg7 {[%clk 0:00:11]} 69. Rc1 {[%clk 0:00:03]}  c2 {[%clk 0:00:12]} 70. Kd3 {[%clk 0:00:03]}  g5 {[%clk 0:00:11]} 71. Kd2 {[%clk 0:00:02]}  Kg6 {[%clk 0:00:11]} 72. Kd3 {[%clk 0:00:02]}  g4 {[%clk 0:00:11]} 73. Kd2 {[%clk 0:00:02]}  Kg5 {[%clk 0:00:11]} 74. Ke3 {[%clk 0:00:02]}  Rc7 {[%clk 0:00:08]} 75. Kf2 {[%clk 0:00:03]}  Kf4 {[%clk 0:00:08]} 76. Kg2 {[%clk 0:00:02]}  Ke3 {[%clk 0:00:09]} 0-1


[Site "https://www.chess.com"]

[Event "Titled Tuesday Blitz August 22 Early 2023"]
[White "Esipenko, Andrey"]
[Black "Jia, Haoxiang"]
[WhiteFideId "24175439"]
[BlackFideId "8602999"]
[WhiteElo "2940"]
[BlackElo "2585"]
[Result "1-0"]
[Round "2"]
[TimeControl "180+1"]
[Date "2023.08.22"]
[WhiteClock "0:00:23"]
[BlackClock "0:00:00"]
[Board "27"]

1. Nf3 {[%clk 0:02:55]}  Nf6 {[%clk 0:02:59]} 2. b3 {[%clk 0:02:55]}  g6 {[%clk 0:02:58]} 3. Bb2 {[%clk 0:02:56]}  Bg7 {[%clk 0:02:59]} 4. c4 {[%clk 0:02:56]}  O-O {[%clk 0:02:59]} 5. g3 {[%clk 0:02:56]}  c5 {[%clk 0:02:56]} 6. Bg2 {[%clk 0:02:56]}  Nc6 {[%clk 0:02:56]} 7. O-O {[%clk 0:02:55]}  b6 {[%clk 0:02:55]} 8. d4 {[%clk 0:02:54]}  cxd4 {[%clk 0:02:55]} 9. Nxd4 {[%clk 0:02:54]}  Bb7 {[%clk 0:02:55]} 10. Nc3 {[%clk 0:02:54]}  Qc8 {[%clk 0:02:49]} 11. Nc2 {[%clk 0:02:47]}  d6 {[%clk 0:02:45]} 12. Qd2 {[%clk 0:02:44]}  Ne5 {[%clk 0:02:39]} 13. e4 {[%clk 0:02:44]}  a6 {[%clk 0:02:36]} 14. Nd4 {[%clk 0:02:27]}  Rd8 {[%clk 0:02:18]} 15. Nd5 {[%clk 0:02:23]}  Bxd5 {[%clk 0:01:34]} 16. cxd5 {[%clk 0:02:16]}  Qb7 {[%clk 0:01:23]} 17. f4 {[%clk 0:02:14]}  Ned7 {[%clk 0:01:23]} 18. Nc6 {[%clk 0:02:15]}  Re8 {[%clk 0:01:23]} 19. e5 {[%clk 0:02:13]}  Ng4 {[%clk 0:01:18]} 20. e6 {[%clk 0:02:07]}  Nf8 {[%clk 0:01:13]} 21. f5 {[%clk 0:01:59]}  Bxb2 {[%clk 0:01:05]} 22. Qxb2 {[%clk 0:02:00]}  f6 {[%clk 0:01:06]} 23. fxg6 {[%clk 0:01:46]}  Nxg6 {[%clk 0:01:02]} 24. Qd2 {[%clk 0:01:44]}  Kh8 {[%clk 0:00:59]} 25. Rf5 {[%clk 0:01:40]}  Rg8 {[%clk 0:00:58]} 26. Be4 {[%clk 0:01:40]}  Rg7 {[%clk 0:00:58]} 27. Rh5 {[%clk 0:01:39]}  Rag8 {[%clk 0:00:57]} 28. Nd4 {[%clk 0:01:39]}  Nf8 {[%clk 0:00:50]} 29. Nf5 {[%clk 0:01:39]}  Rg5 {[%clk 0:00:50]} 30. Rxg5 {[%clk 0:01:35]}  Rxg5 {[%clk 0:00:50]} 31. Rc1 {[%clk 0:01:36]}  b5 {[%clk 0:00:45]} 32. Qd4 {[%clk 0:01:28]}  Ne5 {[%clk 0:00:43]} 33. Kg2 {[%clk 0:01:25]}  Rg4 {[%clk 0:00:39]} 34. h3 {[%clk 0:01:23]}  Rg5 {[%clk 0:00:37]} 35. Kf2 {[%clk 0:01:19]}  b4 {[%clk 0:00:26]} 36. g4 {[%clk 0:01:18]}  h5 {[%clk 0:00:20]} 37. Kg3 {[%clk 0:01:17]}  hxg4 {[%clk 0:00:20]} 38. h4 {[%clk 0:01:18]}  Rg8 {[%clk 0:00:19]} 39. Qe3 {[%clk 0:01:17]}  Rg6 {[%clk 0:00:18]} 40. Qf4 {[%clk 0:00:53]}  Qa7 {[%clk 0:00:18]} 41. Kg2 {[%clk 0:00:41]}  Qb7 {[%clk 0:00:18]} 42. Rc2 {[%clk 0:00:39]}  g3 {[%clk 0:00:18]} 43. h5 {[%clk 0:00:27]}  Rg4 {[%clk 0:00:16]} 44. Qh6+ {[%clk 0:00:27]}  Kg8 {[%clk 0:00:00]} 45. Rc8 {[%clk 0:00:23]} 1-0


[Site "https://www.chess.com"]

[Event "Titled Tuesday Blitz August 22 Early 2023"]
[White "Kazmin_Semyon"]
[Black "Kozak, Adam"]
[BlackFideId "753246"]
[WhiteElo "2585"]
[BlackElo "2934"]
[Result "0-1"]
[Round "2"]
[TimeControl "180+1"]
[Date "2023.08.22"]
[WhiteClock "0:00:35"]
[BlackClock "0:02:33"]
[Board "28"]

1. Nf3 {[%clk 0:02:59]}  c5 {[%clk 0:02:58]} 2. e4 {[%clk 0:02:58]}  a6 {[%clk 0:02:58]} 3. Nc3 {[%clk 0:02:54]}  b5 {[%clk 0:02:56]} 4. d4 {[%clk 0:02:53]}  cxd4 {[%clk 0:02:56]} 5. Nxd4 {[%clk 0:02:54]}  g6 {[%clk 0:02:56]} 6. Be3 {[%clk 0:02:51]}  Bg7 {[%clk 0:02:52]} 7. Bd3 {[%clk 0:02:51]}  Bb7 {[%clk 0:02:52]} 8. O-O {[%clk 0:02:50]}  Nc6 {[%clk 0:02:50]} 9. Nce2 {[%clk 0:02:50]}  d6 {[%clk 0:02:50]} 10. f4 {[%clk 0:02:50]}  Nf6 {[%clk 0:02:49]} 11. h3 {[%clk 0:02:49]}  O-O {[%clk 0:02:48]} 12. c3 {[%clk 0:02:48]}  Nxd4 {[%clk 0:02:48]} 13. Bxd4 {[%clk 0:02:42]}  Bxe4 {[%clk 0:02:48]} 14. Bxf6 {[%clk 0:02:09]}  Bxd3 {[%clk 0:02:47]} 15. Bxg7 {[%clk 0:02:10]}  Bxe2 {[%clk 0:02:47]} 16. Qxe2 {[%clk 0:02:10]}  Kxg7 {[%clk 0:02:47]} 17. f5 {[%clk 0:02:08]}  Qd7 {[%clk 0:02:45]} 18. Rae1 {[%clk 0:02:05]}  Rae8 {[%clk 0:02:44]} 19. Qg4 {[%clk 0:02:04]}  f6 {[%clk 0:02:43]} 20. Qg3 {[%clk 0:01:50]}  Rc8 {[%clk 0:02:40]} 21. b3 {[%clk 0:01:37]}  Rc5 {[%clk 0:02:39]} 22. fxg6 {[%clk 0:01:22]}  hxg6 {[%clk 0:02:40]} 23. Re3 {[%clk 0:01:22]}  Rfc8 {[%clk 0:02:39]} 24. Qf3 {[%clk 0:01:17]}  Re5 {[%clk 0:02:38]} 25. Rd3 {[%clk 0:01:14]}  Qc6 {[%clk 0:02:38]} 26. Qg3 {[%clk 0:01:04]}  Qe4 {[%clk 0:02:37]} 27. Rff3 {[%clk 0:01:03]}  Qe1+ {[%clk 0:02:35]} 28. Qxe1 {[%clk 0:01:01]}  Rxe1+ {[%clk 0:02:36]} 29. Kf2 {[%clk 0:01:02]}  Rc1 {[%clk 0:02:35]} 30. Rfe3 {[%clk 0:00:55]}  Kf7 {[%clk 0:02:35]} 31. Kf3 {[%clk 0:00:43]}  Rc2 {[%clk 0:02:34]} 32. a4 {[%clk 0:00:43]}  bxa4 {[%clk 0:02:34]} 33. bxa4 {[%clk 0:00:44]}  Rc4 {[%clk 0:02:34]} 34. Rd4 {[%clk 0:00:35]}  R2xc3 {[%clk 0:02:33]} 0-1


[Site "https://www.chess.com"]